Cogmind - Beta 14 @@@ ROGUE MODE // 2024.10.10 @ 19:23:58 Player: Longball Result: Destroyed by 58-NTO(R) with Subdweller Shrapnel Launcher Performance ------------- Evolutions (0) 0 Regions Visited (2) 400 Robots Destroyed (33) 165 Value Destroyed (832) 832 Prototype IDs (11) 220 Alien Tech Used (0) 0 Bonus (-128) -128 TOTAL SCORE: 1489 Bonus ------- Friendly Fire -128 Cogmind --------- Core Integrity 0/250 Matter 254/300 Energy 23/100 System Corruption 3% Temperature Cool (0) Movement Rolling (95) Ox1 Location -10/Subcaves Parts ------- > --- POWER (1) -------- (None) > --- PROPULSION (2) --- Wheel > --- UTILITY (2) ------ Makeshift Light Armor Plating > --- WEAPON (2) ------- Beamcaster Makeshift Hammer > --- INVENTORY (5) ---- Improved Terrain Scanner Improved Terrain Scanner Hacking Suite Subdweller Shrapnel Launcher Peak State ------------ > --- POWER ------------ Ion Engine > --- PROPULSION ------- Carbon-fiber Leg Carbon-fiber Leg > --- UTILITY ---------- Improved Terrain Scanner Makeshift Light Armor Plating > --- WEAPON ----------- Beamcaster Beamcaster > --- INVENTORY -------- Light Ion Engine Improved Heat Sink Improved Terrain Scanner Hacking Suite Subdweller Shrapnel Launcher [Rating: 25] Favorites ----------- Power Ion Engine Engine Ion Engine Propulsion Carbon-fiber Leg Leg Carbon-fiber Leg Wheel Subdweller Monowheel Utility Makeshift Light Armor Plating Device Improved Terrain Scanner Storage Small Storage Unit Protection Makeshift Light Armor Plating Weapon Beamcaster Energy Gun Beamcaster Ballistic Gun Assault Rifle Launcher Subdweller Shrapnel Launcher Impact Weapon Makeshift Hammer Build | -11 -10 -10 ------- Run | Yrd Mat Sub Slots Evolved . | . . . Power . | . . . Propulsion . | . . . Utility . | . . . Weapon . | . . . Parts Attached 37 | 7 4 26 Power 4 | 1 . 3 Engine 4 | 1 . 3 Core . | . . . Reactor . | . . . Propulsion 9 | 2 1 6 Treads . | . . . Leg 5 | 2 1 2 Wheel 4 | . . 4 Hover . | . . . Flight . | . . . Utility 11 | 2 . 9 Device 8 | 1 . 7 Storage 1 | 1 . . Processor . | . . . Hackware . | . . . Protection 2 | . . 2 Artifact . | . . . Weapon 13 | 2 3 8 Energy Gun 8 | 1 3 4 Energy Cannon . | . . . Ballistic Gun 1 | 1 . . Ballistic Cannon . | . . . Launcher 1 | . . 1 Special Weapon . | . . . Impact Weapon 3 | . . 3 Slashing Weapon . | . . . Piercing Weapon . | . . . Special Melee Weapon . | . . . Unidentified Prototypes . | . . . Corrupted Parts 1 | . 1 . System Corruption 3 | . 3 . Parts Lost 7 | . 1 6 Power 2 | . . 2 Propulsion 1 | . . 1 Utility 2 | . . 2 Weapon 2 | . 1 1 Highest Loss Streak 4 | . 1 4 To Critical Strikes . | . . . Average Slot Usage (%) 98 | . 99 98 Engine 13 | . 14 13 Leg 17 | . 28 14 Wheel 10 | . . 12 Device 12 | . 14 12 Storage 2 | . 14 . Protection 11 | . . 13 Energy Gun 20 | . 13 21 Ballistic Gun 2 | . 14 . Launcher 2 | . . 2 Impact Weapon 2 | . . 3 Peak Build Rating 25 | 10 10 25 Average Rating 18 | 7 9 21 On Entrance 6 | . 10 10 Naked Turns . | . . . Heaviest Build 33 | 14 15 33 Greatest Support 40 | 20 20 40 Greatest Overweight (x) 1 | . . 1 Average Overweight (x) . | . . . Largest Inventory Capacity 8 | 8 8 8 Average Capacity 5 | 7 8 5 Most Carried 8 | 6 8 8 Average Carried 5 | 4 7 4 Final Capacity 8 | 8 8 5 Final Carried 8 | 6 8 4 Class Distribution -------------------- 63% | Scavenger-Mutant 36% | Mutant Dominant Class ---------------- Mutant | -10/Materials Scavenger-Mutant | -10/Subcaves Resources | -11 -10 -10 ----------- Run | Yrd Mat Sub Matter Collected 864 | 309 151 404 Remotely . | . . . Salvage Created 974 | 246 403 325 Parts 64 | 19 30 15 Haulers Intercepted . | . . . Recyclers Shooed 2 | 2 . . Parts Field Recycled . | . . . Retrieved Matter . | . . . Parts Self-Destructed 18 | . . 18 Prevented . | . . . Kills | -11 -10 -10 ------- Run | Yrd Mat Sub Combat Hostiles Destroyed 18 | . 7 11 Guns 12 | . 6 6 AOE 6 | . 1 5 Classes Destroyed 10 | 3 4 3 Worker 1 | 1 . . Builder 4 | . 4 . Tunneler 6 | 6 . . Recycler 1 | 1 . . Operator 1 | . 1 . Watcher 1 | . 1 . Grunt 11 | . 7 4 Sentry 1 | . . 1 Subdweller 6 | . . 6 Zionite 1 | . . 1 Best Kill Streak 4 | 3 4 4 Combat Bots Only 4 | . 3 4 Max Kills in Single Turn 2 | 1 2 2 Gunslinging . | . . . Exploded 2 | . 1 2 Melee . | . . . Uniques/NPCs Destroyed . | . . . Combat | -11 -10 -10 -------- Run | Yrd Mat Sub Hostile Shots Fired 91 | . 39 52 Missed 28 | . 9 19 Damage Taken 1451 | . 424 1027 Core 255 | . 76 179 Absorbed by Shields . | . . . Core Remaining (%) 100 | 100 . . Volleys Fired 79 | 15 38 26 Largest 2 | 2 2 2 Hottest 150 | 60 60 150 Shots Fired 159 | 30 76 53 Gun 152 | 30 76 46 Cannon . | . . . Launcher 7 | . . 7 Special . | . . . Kinetic 61 | 15 39 7 Thermal 61 | 15 8 38 Explosive . | . . . Electromagnetic 37 | . 29 8 Robot Hit Streak 9 | 8 7 9 Robot Miss Streak 3 | 2 3 3 Penetration Max . | . . . Secondary Targets 2 | . 1 1 Max Gunslinging Chain 1 | . 1 1 Shots Hit Robots 99 | 18 48 33 Core Hits 53 | 9 19 25 Critical Kills . | . . . Critical Parts Destroyed . | . . . Critical Strikes 7 | . 1 6 Burn 4 | . . 4 Corrupt 1 | . 1 . Smash 2 | . . 2 Melee Attacks 19 | . . 19 Impact 19 | . . 19 Slashing . | . . . Piercing . | . . . Sneak Attacks . | . . . Combat Hostiles . | . . . Follow-up Attacks . | . . . Damage Inflicted 2854 | 217 697 1940 Guns 1352 | 217 630 505 Cannons . | . . . Explosions 1407 | . 63 1344 Melee 91 | . . 91 Ramming 4 | . 4 . Kinetic 1734 | 94 296 1344 Thermal 717 | 123 131 463 Explosive . | . . . Electromagnetic 308 | . 266 42 Impact 91 | . . 91 Slashing . | . . . Piercing . | . . . Highest Corruption 3 | . 3 3 Average Corruption 3 | . 3 3 Corruption Purged . | . . . Corruption Blocked . | . . . Effects 44 | . 6 38 Message Errors 10 | . 1 9 Matter Fused 10 | . 1 9 Heat Flow Errors 6 | . . 6 Energy Discharges 4 | . . 4 Parts Fused 1 | . 1 . Data Loss (minor) 7 | . 1 6 Data Loss (major) 2 | . 1 1 Misfires 3 | . 1 2 Alerts 1 | . . 1 Overload Shots . | . . . Overflow Damage . | . . . Projectiles . | . . . Explosions . | . . . Melee . | . . . Knockbacks 1 | . . 1 Impact 1 | . . 1 Kinetic . | . . . Secondary . | . . . Self-Inflicted Damage 40 | . 29 11 Shots 3 | . 2 1 Rammed . | . . . Targets Rammed 2 | . 2 . Kicked 2 | . 2 . Crushed . | . . . Highest Temperature 266 | . 177 266 Average Temperature 81 | . 79 83 Received Heat Transfer 622 | . 240 382 Effects 2 | . . 2 Energy Bleed 2 | . . 2 Siege Activations . | . . . Robots Corrupted . | . . . Combat Hostiles . | . . . Parts Fried 1 | . 1 . Impact Corruptions . | . . . Robots Melted . | . . . Combat Hostiles . | . . . Parts Melted 2 | . . 2 Heat Transferred 1635 | 275 250 1110 Parts Sabotaged . | . . . Parts Stolen . | . . . Parts Stripped . | . . . Power Chain Reactions 2 | . 2 . Alert | -11 -10 -10 ------- Run | Yrd Mat Sub Peak Influence 285 | 40 285 . Initial 26 | . 26 . Average 104 | 14 145 . Maximum Alert Level 1 | . 1 . Low Security (%) 79 | 100 70 . Level 1 20 | . 29 . Level 2 . | . . . Level 3 . | . . . Level 4 . | . . . Level 5 . | . . . High Security . | . . . Max Security . | . . . Squads Dispatched 1 | . 1 . Investigation . | . . . Extermination . | . . . Reinforcement 1 | . 1 . Assault . | . . . Garrison . | . . . Intercept . | . . . Searches Triggered . | . . . Construction Impeded . | . . . Haulers Reinforced . | . . . Active Scanning Responses . | . . . Cargo Convoy Interrupts . | . . . Stealth | -11 -10 -10 --------- Run | Yrd Mat Sub Distress Signals 3 | . 3 . Communications Jammed . | . . . Distress Signals . | . . . Times Spotted 31 | . 11 20 Peak Tracking Total 8 | . 5 8 Tactical Retreats 1 | . 1 . Traps | -11 -10 -10 ------- Run | Yrd Mat Sub Traps Triggered 1 | . . 1 Indirectly . | . . . Trap Hack Attempts . | . . . Triggered . | . . . Disarmed . | . . . Reprogrammed . | . . . Reused . | . . . Traps Extracted . | . . . Installed . | . . . Triggered . | . . . Machines | -11 -10 -10 ---------- Run | Yrd Mat Sub Machines Disabled 2 | . 2 . Max in Single Turn 1 | . 1 . Machines Repaired . | . . . Machines Dismantled . | . . . Machines Sabotaged . | . . . Overloaded Fab Kills . | . . . Hacking | -11 -10 -10 --------- Run | Yrd Mat Sub Machines Accessed 1 | . . 1 Terminals . | . . . Fabricators . | . . . Repair Stations . | . . . Recycling Units . | . . . Scanalyzers . | . . . Garrison Access . | . . . Total Hacks 9 | . . 9 Successful 9 | . . 9 Failed . | . . . Catastrophic . | . . . Database Lockouts . | . . . Manual 1 | . . 1 Terminals . | . . . Fabricators . | . . . Repair Stations . | . . . Recycling Units . | . . . Scanalyzers . | . . . Garrison Access . | . . . Terminal Hacks 9 | . . 9 Record 8 | . . 8 Derelict Proto ID Bank 1 | . . 1 Fabricator Hacks . | . . . Repair Station Hacks . | . . . Recycling Unit Hacks . | . . . Scanalyzer . | . . . Garrison Access Hacks . | . . . Unauthorized Hacks . | . . . Terminals . | . . . Fabricators . | . . . Repair Stations . | . . . Recycling Units . | . . . Scanalyzers . | . . . Garrison Access . | . . . Data Cores Recovered . | . . . Used . | . . . Hacking Detections . | . . . Full Trace Events . | . . . Feedback Events . | . . . Feedback Blocked . | . . . Robot Schematics Acquired . | . . . Robots Built . | . . . Authchips . | . . . Time . | . . . Total Robot Build Rating . | . . . Part Schematics Acquired . | . . . Parts Built . | . . . Authchips . | . . . Time . | . . . Total Part Build Rating . | . . . Parts Repaired . | . . . Time . | . . . Parts Recycled . | . . . Recycled Matter . | . . . Retrieved Matter . | . . . Retrieved Components . | . . . Parts Scanalyzed . | . . . Part Schematics Acquired . | . . . Parts Damaged . | . . . Bothacking | -11 -10 -10 ------------ Run | Yrd Mat Sub Used RIF Installer . | . . . Robots Hacked . | . . . Non-combat . | . . . Combat . | . . . Robot Hacks Applied . | . . . Relay Couplers Released . | . . . Fabnet Peak Effective % . | . . . Robots Rewired . | . . . Allies Hacked . | . . . Hacks Repelled . | . . . Allies | -11 -10 -10 -------- Run | Yrd Mat Sub Total Allies . | . . . Largest Group . | . . . Highest-Rated Group . | . . . Highest-Rated Ally . | . . . Total Orders . | . . . Ally Attacks . | . . . Total Damage . | . . . Kills . | . . . Allies Corrupted . | . . . Allies Melted . | . . . Intel | -11 -10 -10 ------- Run | Yrd Mat Sub Robot Analysis Total . | . . . Derelict Logs Recovered 1 | . . 1 Drone Launches . | . . . Drone Recoveries . | . . . Exploration | -11 -10 -10 ------------- Run | Yrd Mat Sub Turns Passed 2924 | 216 478 2230 Spaces Moved 2085 | 120 201 1764 Core 5 | 5 . . Treads . | . . . Legs 1129 | 115 201 813 Wheels 951 | . . 951 Hover . | . . . Flight . | . . . Fastest Speed 50 | 50 120 80 Average Speed 113 | 117 120 112 Slowest Speed 190 | 120 120 190 Overloaded Moves . | . . . Propulsion Burnouts . | . . . Robots Hopped . | . . . Cave-ins Triggered . | . . . Exploration Rate (%) 35 | 9 24 73 Regions Visited 2 Branch Regions 1 Pre-discovered Areas 2 | . . 2 Known Exits Taken . | . . . Unknown Exits Taken 2 | 1 1 . Scrap Searched 8 | . . 8 Spaces Dug 5 | . . 5 Terrain Destroyed 88 | . 4 84 Melee 5 | . . 5 Projectile . | . . . AOE 83 | . 4 79 Terrain Rammed . | . . . Walls Destroyed . | . . . Machines Disabled . | . . . Actions | -11 -10 -10 --------- Run | Yrd Mat Sub Total 2462 | 163 362 1937 Wait 210 | 12 114 84 Move 2083 | 119 200 1764 Hop . | . . . Pick Up 12 | 8 2 2 Fast Attach 18 | 7 1 10 Attach 3 | . 1 2 Detach 2 | . 1 1 Swap 16 | . 2 14 Drop 18 | 2 1 15 Fire 79 | 15 38 26 Melee 19 | . . 19 Ram . | . . . Kick 2 | . 2 . Crush . | . . . Escape Stasis . | . . . Rewire . | . . . Trap . | . . . Miscellaneous . | . . . Route ------- -11/Scrapyard -10/Materials -10/Subcaves (discovered 1 exit: [*Mat]) History --------- Turn | Location | Event 2 | -11/Scrapyard | Discovered new exit (range 16) 217 | -11/Scrapyard | Entered Materials 300 | -10/Materials | Build established: Mutant 414 | -10/Materials | Discovered new exit (range 13) 695 | -10/Materials | Entered Subcaves 698 | -10/Subcaves | Shifting Twisted Machinery released Humpback 744 | -10/Subcaves | Shifting Twisted Machinery released Sub. Shrapnel Launcher 811 | -10/Subcaves | Learned location of Zion (-7) 811 | -10/Subcaves | Met a Zionite searching for "candidates" 845 | -10/Subcaves | Ambushed by swarm of Subdwellers 845 | -10/Subcaves | Ambushed by Subdwellers from Twisted Machinery 846 | -10/Subcaves | Ambushed by Subdwellers from Twisted Machinery 889 | -10/Subcaves | Lost 4 allies 1106 | -10/Subcaves | Shifting Twisted Machinery released Sub. Machine Gun 1152 | -10/Subcaves | Discovered new exit (range 15) 1154 | -10/Subcaves | Shifting Twisted Machinery released Barrage Gun 1310 | -10/Subcaves | Build established: Scavenger-Mutant 1408 | -10/Subcaves | A swath of the cavern ceiling suddenly collapsed 2121 | -10/Subcaves | Visited 4L-MR0's lab 2864 | -10/Subcaves | Shifting Twisted Machinery released Battle Cannon 2871 | -10/Subcaves | Shifting Twisted Machinery released Sub. Beam Cannon 2902 | -10/Subcaves | Core integrity fell below 50% 2917 | -10/Subcaves | Core integrity fell below 20% 2925 | -10/Subcaves | Destroyed by 58-NTO(R) with Subdweller Shrapnel Launcher Last Messages --------------- 02480_ 6T1M YLFJ>YGXDFL7W9D VREVU0D1 02591_ System corrupted: Energy discharge (-48). 02596_ KT-57K(u) tweaks Twisted Machinery. 02696_ System corrupted: Heat flow error (+111). 02728_ KT-57K(u) tweaks Twisted Machinery. 02787_ System corrupted: Matter fused (-10). 02816_ System corrupted: Energy discharge (-37). 02841_ Dropped Sub. Monowheel. Battle Cannon falls loose from the Twisted Machinery. 02869_ System corrupted: Heat flow error (+175). Sub. Beam Cannon falls loose from the Twisted Machinery. 02905_ Lgt. Ion Engine destroyed. 02905_ Sub. Monowheel destroyed. 02905_ IM-O4V(R) destroyed. 02912_ Beamcaster destroyed. 02915_ System corrupted: Component data lost. 02918_ 58-NTO(R) suffers critical hit (Smash). 02918_ 58-NTO(R) knocked back. 02920_ Imp. Heat Sink destroyed. 02923_ 58-NTO(R) suffers critical hit (Smash). Map ----- +----------------------------------------------------+ | ?????????????????????????????????????????????????? | | ?????????????????????????????????????????????????? | | ?????????????????????????????????????????????????? | | ?????????????????????????????????????????????????? | | ?????????????????????????????????????????????????? | | ?????????????????????????????????????????????????? | | ?????????????????????????????????????????????????? | | ?????????????????????????????????????????????????? | | ?????????????????????????????????????????????????? | | ?????????????????????????????????????????????????? | | ?????????????????????????????????????????????????? | | ?????????????????????????????????????????????????? | | ?????????????????????????????????????????????????? | | ???????????????????????????????#?????????????????? | | ?????????????????????????????? ?????????????????? | | ?????????????????????????????? ##????????????????? | | ????????????????????????????? #????????????????? | | ????????????????????????????? ?????????????????? | | ???????????????????????????## #?????????????????? | | ??????????????????????????# #?????????????????? | | ?????????????????????????? ##????????????????? | | ??????????????????????####" """"##???????????????? | | ?#??????????????????###;;; " #???????????????? | | ? #?????????????????# ; #???????????????? | | ? #####?????????????# R #???????????????? | | ? # ????????????## @ #????????????????? | | ? ?????????????# ####?????????????? | | # ??????????#???# ##?????????#??? | | # ??????????# ?## ##???????????? | | # ???????????# # #???????????? | | ????????????# #####???????????? | | # ##???????????## ###????###????????? | | "#????????????# ###??### ####?????? | | ##?????#?????## ### ##????? | | #### ### ???## ## ??? | | ] #??# ? | | #?# ? | | "## ##### ## ### ? | | "#?? ## ????## #######????????? | | ""#??? ###??# ##### ?????## #?## ####??????? | | ###?????##????#?????#####??#??## ### ##?????? | | ?????????????????####??#???????# ####??? | | ????????????????## ??????????## ##?? | | ????????????????? ???????###??# #?? | | ???????????????## ??###### #??## #?? | | ??????????????### #?# #??# #?? | | ???????????### ## #?# ### "" ##?? | | ??#??####### #?# "" #######??? | | ##?### # ### ## "" ##???????? | | #?# #?? #?## ]""] #???????? | +----------------------------------------------------+ Best States ------------- Heat Dissipation 39 Energy Generation 15 Energy Capacity 250 Matter Stores 300 Matter Capacity 300 Sight Range 16 Terrain Scan Range 16 Terrain Scan Density 10 Armor Coverage 800 Evasion (%) 55 Item Schematics ----------------- None Robot Schematics ------------------ None Fabricated ------------ Nothing Alien Tech Used ----------------- None Achievements -------------- None Challenges ------------ None Game ------ Seed UltimateLightpackNanosword Manual? 0 Play Time 00:34:51 Cumulative 218.3 hours Start 2024.10.10 @ 18:54:46 End 2024.10.10 @ 19:23:58 Sessions 1 Manual Loads 0 Difficulty Rogue Special Mode None Game No. 171 Rogue 171 Adventurer 0 Explorer 0 Win Type - Total 1 Types 1/0/0/0/0/0/0/0/0 Lore% 43 Gallery% 60 Achievement% 41 Wizard Run 0 Options --------- Layout 0 ASCII 0 Keyboard 1 Movement Numpad Keybinds 0 Fullscreen 1 Font 12/Terminus Map View 83x54 Zoom Use 0% Tactical HUD 1 Map Filters NONE Filters NONE Steam 1 RUN: f436fb00-4042-4c91-89a7-baba09766578